bitfinex/quotes_SOLUSD_20260306
["timestamp","ask_amount","ask_price","bid_price","bid_amount"]
[1772806619125,10.85088213,85.08,84.998,0.5]
[1772806619530,11.13520527,85.09,84.998,0.5]
[1772806619730,0.28432314,85.079,84.998,0.5]
[1772806620223,10.85088213,85.08,84.998,0.5]
[1772806620424,11.13520527,85.09,84.998,0.5]
[1772806620738,41.41820805,85.088,85.003,0.5]
[1772806620936,10.85088213,85.06,85.003,0.5]
[1772806621235,7.61875792,85.087,84.92,103.0]
[1772806621236,7.61838262,85.059,84.966,0.5]
[1772806621541,0.28432314,85.049,84.969,3.69383402]
[1772806621716,10.85088213,85.04,84.97,0.5]
[1772806621923,0.28432314,85.049,84.971,0.5]
[1772806622136,10.85088213,85.04,84.971,0.5]
[1772806622339,10.85088213,85.06,84.971,0.5]
[1772806622629,10.85088213,85.05,84.977,0.5]
[1772806623027,0.28432314,85.058,84.977,0.5]
[1772806623336,10.85088213,85.07,84.978,4.82477569]
[1772806623520,11.75378177,85.079,84.992,0.5]
[1772806623935,41.13823621,85.079,84.992,0.5]
[1772806624144,11.75378177,85.079,84.992,0.5]
[1772806624523,11.75307439,85.085,85.003,0.5]
[1772806624814,41.12863682,85.099,85.009,0.5]
[1772806625026,7.63717384,85.098,85.009,0.5]
[1772806625235,10.85088213,85.08,85.009,0.5]
[1772806625415,0.14216157,85.069,85.009,0.5]
[1772806625614,10.85088213,85.06,85.009,0.5]
[1772806625816,10.85088213,85.05,85.009,0.5]
[1772806626236,0.28432314,85.059,85.009,0.5]
[1772806626439,10.85088213,85.05,85.009,0.5]
[1772806626630,11.75668367,85.058,85.01,41.67162686]
[1772806626820,7.92757946,85.057,85.01,41.67162686]
[1772806627016,10.85088213,85.05,85.01,12.26332196]
[1772806627219,7.64325632,85.049,85.01,12.26332196]
[1772806627421,10.85088213,85.05,85.01,11.76332196]
[1772806627621,0.49770037,85.049,84.95,0.14216157]
[1772806629124,11.75806603,85.048,84.95,0.14216157]
[1772806629517,0.49770037,85.049,84.95,0.14216157]
[1772806629822,0.49770037,85.049,84.938,1.17732934]
[1772806629823,0.49770037,85.061,84.978,0.46222812]
[1772806630333,0.49770037,85.073,84.978,0.46222812]
[1772806630731,0.49770037,85.071,84.983,0.28432314]
[1772806631044,0.49770037,85.068,84.939,1.17731548]
[1772806631226,0.49770037,85.066,84.939,1.17731548]
[1772806631422,41.1416212,85.072,84.938,41.20652711]
[1772806631423,0.49770037,85.049,84.938,41.20652711]
[1772806631634,0.49770037,85.046,84.939,0.29136526]
[1772806631830,0.49770037,85.046,84.938,41.20652711]
[1772806631831,0.49770037,85.045,84.938,41.20652711]
[1772806632143,0.49770037,85.045,84.939,0.29136526]
[1772806632324,0.49770037,85.045,84.938,41.20652711]
[1772806632529,0.49770037,85.045,84.939,1.17731548]
[1772806632943,0.49770037,85.045,84.957,0.46222812]
[1772806633124,0.49770037,85.045,84.971,0.46222812]
[1772806633526,0.49770037,85.045,84.94,52.9]
[1772806633938,0.49770037,85.045,84.94,53.48720934]
[1772806634448,0.49770037,85.045,84.941,58.86438822]
[1772806634653,29.391841,85.058,84.941,58.86438822]
[1772806634654,0.49770037,85.038,84.941,58.86438822]
[1772806634850,0.49770037,85.034,84.941,100.06945997]
[1772806635028,0.49770037,85.031,84.941,100.06945997]
[1772806635542,0.49770037,85.031,84.946,0.46222812]
[1772806635744,0.49770037,85.041,84.97,0.46222812]
[1772806636331,12.04238917,85.048,84.97,0.46222812]
[1772806636332,0.49770037,85.038,84.97,0.46222812]
[1772806636527,0.49770037,85.028,84.97,0.46222812]
[1772806637041,0.49770037,85.025,84.903,52.9]
[1772806637348,0.49770037,85.025,84.906,3.69383402]
[1772806637549,0.49770037,85.025,84.907,4.5734954]
[1772806637755,0.49770037,85.025,84.91,11.73944103]
[1772806637955,0.49770037,85.025,84.913,3.69383402]
[1772806638351,0.49770037,85.025,84.914,0.14216157]
[1772806638561,0.49770037,85.025,84.914,0.28432314]
[1772806639050,0.49770037,85.022,84.934,0.46222812]
[1772806639968,0.28432314,85.023,84.934,0.46222812]
[1772806639969,0.49770037,85.009,84.934,0.46222812]
[1772806640130,0.49770037,85.008,84.934,0.46222812]
[1772806640553,1.47019041,85.023,84.937,4.82477569]
[1772806640856,11.75861906,85.044,84.946,0.46222812]
[1772806641041,11.7588956,85.042,84.954,3.69383402]
[1772806641242,1.46987923,85.041,84.957,0.46222812]
[1772806641650,10.8670102,85.04,84.957,0.46222812]
[1772806641976,1.75423694,85.039,84.957,0.46222812]
[1772806642298,1.4699138,85.039,84.957,0.46222812]
[1772806642448,0.49770037,85.039,84.957,0.46222812]
[1772806643145,0.49770037,85.037,84.963,0.46222812]
[1772806644265,0.49770037,85.036,84.963,0.46222812]
[1772806644562,1.46970641,85.051,84.967,0.46222812]
[1772806644766,1.46939543,85.069,84.977,0.46222812]
[1772806645005,11.75562986,85.066,84.987,0.46222812]
[1772806645149,1.46917091,85.082,84.993,0.46222812]
[1772806646067,10.8670102,85.07,84.993,0.46222812]
[1772806646372,1.75371857,85.069,84.993,0.46222812]
[1772806646663,0.49770037,85.068,84.993,0.46222812]
[1772806647077,11.75295292,85.085,84.998,0.46222812]
[1772806647366,11.75005287,85.106,85.016,0.46222812]
[1772806647569,1.753097,85.105,85.016,0.46222812]
[1772806647870,1.46877386,85.105,85.016,0.46222812]
[1772806648046,1.753097,85.105,85.016,0.46222812]
[1772806648246,0.28432314,85.099,85.016,0.46222812]
[1772806648442,1.46889468,85.098,85.016,0.46222812]
[1772806649066,0.49770037,85.093,85.021,0.46222812]
[1772806649251,0.49770037,85.091,85.021,0.46222812]
[1772806649570,0.49770037,85.1,85.027,0.46222812]
[1772806649868,0.49770037,85.1,85.028,0.46222812]
[1772806650169,0.49770037,85.097,85.028,0.46222812]
[1772806650382,0.49770037,85.095,85.028,0.46222812]
[1772806650554,0.49770037,85.093,85.028,0.46222812]
[1772806650754,0.49770037,85.091,85.028,0.46222812]
[1772806650949,0.49770037,85.089,85.028,0.46222812]
[1772806651152,0.49770037,85.085,85.033,0.46222812]
[1772806651383,0.49770037,85.123,85.034,0.46222812]
[1772806651553,0.49770037,85.123,85.036,1.01067104]
[1772806651969,41.11021059,85.137,85.036,1.01067104]
[1772806651970,0.97205767,85.118,85.036,1.01067104]
[1772806652167,0.97205767,85.109,85.036,1.01067104]
[1772806653174,0.97205767,85.109,85.041,1.15283261]
[1772806653465,0.97205767,85.109,85.043,1.15283261]
[1772806653657,0.97205767,85.109,85.044,1.15283261]
[1772806653857,0.97205767,85.109,85.046,1.01067104]
[1772806654059,0.97205767,85.109,85.047,1.15283261]
[1772806654267,0.97205767,85.109,85.049,1.01067104]
[1772806654454,0.97205767,85.109,85.054,1.01067104]
[1772806654853,0.97205767,85.107,85.054,1.01067104]
[1772806655368,0.97205767,85.117,85.054,1.01067104]
[1772806655572,0.2,85.15,85.06,3.69383402]
[1772806655751,0.2,85.15,85.067,1.01067104]
[1772806655951,0.2,85.15,85.069,1.01067104]
[1772806656152,0.2,85.15,85.076,1.01067104]
[1772806656367,0.2,85.15,85.089,1.01067104]
[1772806657179,0.2,85.18,85.089,1.01067104]
[1772806657180,0.2,85.18,85.095,1.01067104]
[1772806657356,22.80693852,85.18,85.096,1.01067104]
[1772806657552,0.49399009,85.178,85.096,1.01067104]
[1772806658377,0.49399009,85.175,85.101,1.01067104]
[1772806658672,0.49399009,85.175,85.102,1.01067104]
[1772806658976,0.49399009,85.175,85.104,1.01067104]
[1772806659184,0.49399009,85.175,85.106,1.01067104]
[1772806659359,0.68972312,85.18,85.108,1.01067104]
[1772806659555,0.48972312,85.179,85.11,1.01067104]
[1772806659755,0.48972312,85.179,85.112,1.01067104]
[1772806659962,0.48972312,85.179,85.114,1.01067104]
[1772806660156,0.48972312,85.179,85.116,1.01067104]
[1772806660369,11.93856119,85.19,85.108,0.28432314]
[1772806660370,0.2,85.19,85.123,1.01067104]
[1772806660678,1e-08,85.231,85.18,1.01067104]
[1772806661176,11.73295787,85.23,85.18,1.01067104]
[1772806661374,1e-08,85.231,85.17,1.0296036]
[1772806661558,1e-08,85.231,85.172,1.0296036]
[1772806661760,1e-08,85.231,85.174,1.0296036]
[1772806661960,1e-08,85.231,85.176,1.0296036]
[1772806662280,10.8670102,85.26,85.178,1.0296036]
[1772806662476,11.7275915,85.269,85.167,0.28432314]
[1772806662477,10.8670102,85.25,85.183,1.0296036]
[1772806662674,0.28432314,85.259,85.184,1.0296036]
[1772806662979,41.04657026,85.269,85.185,1.0296036]
[1772806663160,0.2,85.27,85.186,1.0296036]
[1772806663361,11.7275915,85.269,85.186,1.0296036]
[1772806663576,0.14216157,85.268,85.186,1.0296036]
[1772806663962,41.04657026,85.269,85.186,1.0296036]
[1772806664162,11.7275915,85.269,85.186,1.0296036]
[1772806664364,22.78900028,85.31,85.2,1.0296036]
[1772806664577,1e-08,85.31,85.218,1.0296036]
[1772806664779,1e-08,85.31,85.2,11.80620511]
[1772806664780,1e-08,85.31,85.228,1.31392674]
[1772806664965,1e-08,85.31,85.234,1.0296036]
[1772806665174,10.86701021,85.31,85.237,1.0296036]
[1772806665364,12.00641576,85.309,85.237,1.0296036]
[1772806665571,11.72209262,85.309,85.237,1.0296036]
[1772806665765,0.14216157,85.299,85.237,1.0296036]
[1772806666497,0.28432314,85.308,85.239,1.0296036]
[1772806666676,0.28432314,85.299,85.239,1.0296036]
[1772806666866,41.02732418,85.309,85.239,1.0296036]
[1772806667065,10.8670102,85.28,85.235,0.94693355]
[1772806667268,0.28432314,85.279,85.235,0.94693355]
[1772806667671,10.8670102,85.27,85.235,0.94693355]
[1772806667982,10.8670102,85.29,85.236,11.73213196]
[1772806668182,10.8670102,85.28,85.235,0.94693355]
[1772806668385,0.28432314,85.279,85.235,12.67909743]
[1772806668588,0.28432314,85.277,85.235,0.94693355]
[1772806668772,0.28432314,85.277,85.236,11.73213196]
[1772806670695,0.28432314,85.275,85.236,11.73213196]
[1772806670992,0.28432314,85.249,85.201,0.36412391]
[1772806671175,0.28432314,85.229,85.201,0.36412391]
[1772806671675,99.67634503,85.276,85.201,0.36412391]
[1772806671994,99.67634503,85.276,85.202,1.0296036]
[1772806671995,0.28432314,85.275,85.202,1.0296036]
[1772806672193,41.04320089,85.276,85.205,1.0296036]
[1772806672683,0.14216157,85.269,85.207,1.0296036]
[1772806672881,10.8670102,85.23,85.201,0.36412391]
[1772806673082,0.28432314,85.239,85.202,11.73681368]
[1772806673275,10.8670102,85.26,85.202,11.73681368]
[1772806673475,0.28432314,85.259,85.203,1.0296036]
[1772806673974,0.28432314,85.249,85.202,11.73681368]
[1772806674181,0.28432314,85.249,85.203,1.0296036]
[1772806674580,10.8670102,85.26,85.205,1.0296036]
[1772806674581,11.72896702,85.259,85.205,1.0296036]
[1772806674895,10.8670102,85.24,85.201,0.36412391]
[1772806675088,0.14216157,85.229,85.201,0.36412391]
[1772806675290,0.14216157,85.239,85.201,12.10095761]
[1772806675686,41.05138459,85.259,85.202,1.0296036]
[1772806676079,0.14216157,85.258,85.202,1.0296036]
[1772806676274,0.28432314,85.249,85.201,41.44333622]
[1772806676480,0.28432314,85.229,85.201,0.36412391]
[1772806676676,0.28432314,85.227,85.201,0.36412391]
[1772806676877,0.28432314,85.219,85.201,1e-08]
[1772806677396,0.28432314,85.209,85.201,1e-08]
[1772806678996,0.28432314,85.207,85.201,1e-08]
[1772806680401,0.28432314,85.207,85.14,3.69383402]
[1772806680402,0.28432314,85.207,85.162,1.0296036]
[1772806680581,0.28432314,85.213,85.167,1.0296036]
[1772806680783,11.73309554,85.229,85.172,1.0296036]
[1772806681197,10.8670102,85.25,85.172,1.0296036]
[1772806681405,11.72924217,85.257,85.173,1.0296036]
[1772806681583,11.72924217,85.257,85.175,1.0296036]
[1772806681785,10.8670102,85.25,85.176,1.0296036]
[1772806681992,0.28432314,85.249,85.176,1.0296036]
[1772806682301,10.8670102,85.25,85.176,1.0296036]
[1772806682492,10.8670102,85.23,85.176,1.0296036]
[1772806682680,0.28432314,85.227,85.177,41.09090482]
[1772806682882,0.28432314,85.227,85.147,0.14216157]
[1772806682883,0.28432314,85.209,85.163,1.0296036]
[1772806683784,0.28432314,85.189,85.129,1.0296036]
[1772806684110,0.14216157,85.209,85.129,1.0296036]
[1772806684803,0.28432314,85.189,85.131,1.0296036]
[1772806685903,41.07547323,85.209,85.135,1.0296036]
[1772806686097,0.28432314,85.208,85.135,1.17176517]
[1772806686407,0.28432314,85.199,85.135,1.0296036]
[1772806686589,0.28432314,85.189,85.135,1.0296036]
[1772806686785,11.73874254,85.188,85.137,1.0296036]
[1772806686986,0.28432314,85.189,85.14,1.0296036]
[1772806687909,11.73584949,85.209,85.141,1.0296036]
[1772806688086,41.07547323,85.209,85.141,1.0296036]
[1772806688282,0.28432314,85.208,85.141,1.0296036]
[1772806688703,11.73584949,85.209,85.141,1.0296036]
[1772806689013,29.33625034,85.219,85.147,1.0296036]
[1772806689014,11.73447235,85.219,85.147,1.0296036]
[1772806690108,0.28432314,85.218,85.147,1.0296036]
[1772806690483,11.73447235,85.219,85.147,1.0296036]
[1772806690697,11.73362227,85.226,85.147,1.0296036]
[1772806690898,10.8670102,85.23,85.152,1.0296036]
[1772806691080,10.8670102,85.23,85.153,1.17176517]
[1772806691287,10.8670102,85.23,85.155,1.0296036]
[1772806691489,0.14216157,85.229,85.157,1.0296036]
[1772806691687,10.8670102,85.23,85.157,1.0296036]
[1772806691886,0.28432314,85.229,85.157,1.0296036]
[1772806692301,11.73199432,85.237,85.162,1.0296036]
[1772806692523,11.73115088,85.244,85.163,1.0296036]
[1772806692810,29.32327823,85.257,85.165,1.0296036]
[1772806692811,11.73155848,85.241,85.165,1.0296036]
[1772806693127,11.73087653,85.246,85.172,1.0296036]
[1772806693283,11.73087653,85.246,85.173,1.31392674]
[1772806693488,11.73087653,85.246,85.175,1.0296036]
[1772806693702,3.69383402,85.279,85.175,1.0296036]
[1772806693703,47.30944183,85.278,85.18,1.0296036]
[1772806693922,10.8670102,85.26,85.18,1.0296036]
[1772806694103,10.8670102,85.27,85.18,1.0296036]
[1772806694304,0.14216157,85.268,85.18,1.0296036]
[1772806694503,18.13571889,85.268,85.18,1.0296036]
[1772806694806,10.8670102,85.27,85.18,1.0296036]
[1772806694807,0.14216157,85.266,85.18,1.0296036]
[1772806695500,0.28432314,85.264,85.186,1.0296036]
[1772806695802,0.28432314,85.249,85.187,1.0296036]
[1772806696219,10.8670102,85.23,85.181,41.08897523]
[1772806696398,0.28432314,85.229,85.181,41.08897523]
[1772806696815,0.28432314,85.229,85.181,11.73970721]
[1772806697016,0.28432314,85.229,85.181,42.11857883]
[1772806697322,0.28432314,85.229,85.181,41.08897523]
[1772806697617,0.28432314,85.229,85.162,58.7110296]
[1772806697618,0.28432314,85.227,85.172,1.0296036]
[1772806698299,3.69383402,85.257,85.172,1.0296036]
[1772806698504,0.28432314,85.229,85.172,1.0296036]
[1772806698710,0.28432314,85.229,85.175,1.0296036]
[1772806699716,11.7332332,85.228,85.177,1.0296036]
[1772806700107,0.28432314,85.227,85.177,1.0296036]
[1772806700909,11.7332332,85.228,85.177,1.0296036]
[1772806701425,0.28432314,85.237,85.18,1.0296036]
[1772806701628,41.04801444,85.266,85.185,1.0296036]
[1772806701922,41.04801444,85.266,85.186,1.31392674]
[1772806702130,41.04801444,85.266,85.187,1.0296036]
[1772806703125,0.28432314,85.265,85.187,1.0296036]
[1772806703429,11.72800412,85.266,85.187,1.0296036]
[1772806703718,11.72800412,85.266,85.192,1.0296036]
[1772806703719,0.14216157,85.265,85.192,1.0296036]
[1772806703924,0.28432314,85.259,85.192,1.0296036]
[1772806704104,0.28432314,85.249,85.192,1.0296036]
[1772806704306,0.28432314,85.239,85.192,1.0296036]
[1772806705621,11.73185668,85.238,85.193,41.08318757]
[1772806705928,0.28432314,85.229,85.183,11.73943157]
[1772806706122,0.28432314,85.229,85.184,1.0296036]
[1772806706824,0.28432314,85.229,85.183,11.73943157]
[1772806707022,0.28432314,85.199,85.145,1.0296036]
[1772806707930,11.73736472,85.198,85.147,1.0296036]
[1772806708221,0.28432314,85.199,85.15,1.0296036]
[1772806709427,58.65928341,85.238,85.15,1.0296036]
[1772806709428,0.28432314,85.234,85.152,1.0296036]
[1772806709606,41.06198012,85.237,85.153,1.0296036]
[1772806709813,58.6471146,85.256,85.153,1.0296036]
[1772806709814,11.73034287,85.249,85.159,1.0296036]
[1772806710013,11.73034287,85.249,85.16,1.17176517]
[1772806710330,7.72753713,85.248,85.162,1.17176517]
[1772806710506,0.14216157,85.248,85.163,1.17176517]
[1772806710703,0.14216157,85.245,85.165,1.17176517]
[1772806710906,0.14216157,85.245,85.155,99.81797897]
[1772806710907,0.8656261,85.244,85.155,82.11006287]
[1772806711309,0.8656261,85.244,85.156,5.99909106]
[1772806711609,11.73034287,85.249,85.156,5.99909106]
[1772806711925,0.89002829,85.248,85.156,5.99909106]
[1772806712111,0.89002829,85.247,85.158,4.82477569]
[1772806712839,0.89002829,85.247,85.162,0.89580949]
[1772806713622,0.88191754,85.257,85.168,4.82477569]
[1772806713822,0.88191754,85.257,85.181,0.89580949]
[1772806714022,58.61955096,85.296,85.19,0.89580949]
[1772806714023,0.88191754,85.278,85.19,0.89580949]
[1772806714218,0.88191754,85.278,85.2,0.89580949]
[1772806714545,10.81622211,85.31,85.194,0.28432314]
[1772806714546,0.87787937,85.291,85.209,0.89580949]
[1772806714838,0.87787937,85.291,85.21,0.89580949]
[1772806716029,11.72451328,85.292,85.204,0.28432314]
[1772806716030,0.88584355,85.289,85.215,0.89580949]
[1772806716231,1.02800512,85.289,85.215,0.89580949]
[1772806716426,0.88584355,85.296,85.218,0.89580949]
[1772806716623,0.88584355,85.296,85.219,0.89580949]
[1772806717010,1.17016669,85.296,85.219,0.89580949]
[1772806717432,12.89404588,85.296,85.219,0.89580949]
[1772806717618,1.16209904,85.295,85.219,0.89580949]
[1772806717823,0.8777759,85.293,85.219,0.89580949]
[1772806718023,0.8777759,85.291,85.225,0.89580949]
[1772806718325,1.16209904,85.29,85.225,0.89580949]
[1772806718641,0.8777759,85.289,85.225,0.89580949]
[1772806719124,0.8777759,85.289,85.23,0.89580949]
[1772806719638,0.8697536,85.287,85.23,0.89580949]
[1772806721241,0.86575936,85.297,85.235,0.89580949]
[1772806721618,0.86177636,85.3,85.236,0.89580949]
[1772806721817,0.86177636,85.298,85.236,0.89580949]
[1772806722019,1e-08,85.31,85.239,0.89580949]
[1772806722329,0.86177636,85.307,85.239,0.89580949]
[1772806722527,0.85780456,85.305,85.239,0.89580949]
[1772806722714,0.85780456,85.303,85.239,0.89580949]
[1772806722922,0.85780456,85.299,85.239,0.89580949]
[1772806723444,0.85780456,85.296,85.241,0.89580949]
[1772806725443,0.84989442,85.285,85.233,0.89580949]
[1772806725624,0.84595601,85.284,85.241,0.89580949]
[1772806725820,0.84595601,85.282,85.241,0.89580949]
[1772806726149,1.13027915,85.28,85.241,0.89580949]
[1772806726646,0.84202866,85.279,85.241,0.89580949]
[1772806727042,0.84202866,85.279,85.24,29.32895354]
[1772806727422,0.84202866,85.275,85.232,11.73268256]
[1772806727757,0.84202866,85.275,85.213,58.67594084]
[1772806727758,10.8162221,85.26,85.207,0.93385797]
[1772806727927,0.28432314,85.259,85.207,0.93385797]
[1772806729627,0.28432314,85.257,85.209,0.93385797]
[1772806729828,0.28432314,85.306,85.212,0.93385797]
[1772806730134,41.02828606,85.307,85.213,0.93385797]
[1772806730330,41.02828606,85.307,85.215,0.93385797]
[1772806730538,41.02828606,85.307,85.216,0.28432314]
[1772806730739,41.02828606,85.307,85.218,0.93385797]
[1772806730944,41.02828606,85.307,85.223,0.93385797]
[1772806730945,10.8162221,85.3,85.223,0.93385797]
[1772806731239,41.02828606,85.307,85.223,0.93385797]
[1772806731444,11.72209262,85.309,85.224,0.93385797]
[1772806731632,41.02732418,85.309,85.226,0.93385797]
[1772806731835,41.02732418,85.309,85.227,0.93385797]
[1772806732046,41.02732418,85.309,85.229,0.93385797]
[1772806732547,0.28432314,85.308,85.229,0.93385797]
[1772806732955,0.28432314,85.306,85.234,0.93385797]
[1772806733457,0.28432314,85.299,85.234,0.93385797]
[1772806734953,0.14216157,85.299,85.239,0.93385797]
[1772806735542,0.14216157,85.306,85.239,0.93385797]
[1772806736654,1e-08,85.31,85.239,0.93385797]
[1772806736849,11.72209262,85.309,85.239,0.93385797]
[1772806737039,11.72209262,85.309,85.244,0.93385797]
[1772806737040,0.28432314,85.308,85.244,0.93385797]
[1772806737238,1e-08,85.31,85.244,0.93385797]
[1772806737847,1e-08,85.31,85.247,0.93385797]
[1772806738954,1e-08,85.31,85.248,99.70908408]
[1772806739258,1e-08,85.31,85.252,0.93385797]
[1772806741052,1e-08,85.31,85.22,4.82477569]
[1772806741053,0.28432314,85.299,85.247,11.73060277]
[1772806741355,0.28432314,85.299,85.251,0.93385797]
[1772806743044,0.28432314,85.299,85.25,3.69383402]
[1772806743045,0.28432314,85.297,85.253,0.93385797]
[1772806745346,11.72209262,85.309,85.258,0.93385797]
[1772806745553,1e-08,85.31,85.258,0.93385797]
[1772806745768,1e-08,85.31,85.259,0.93385797]
[1772806747351,1e-08,85.31,85.264,0.93385797]
[1772806747544,1e-08,85.31,85.265,0.93385797]
[1772806747869,0.1,85.34,85.267,0.93385797]
[1772806748173,0.28432314,85.339,85.267,0.93385797]
[1772806748848,0.28432314,85.337,85.267,0.93385797]
[1772806749046,0.28432314,85.335,85.272,0.93385797]
[1772806749751,0.28432314,85.319,85.268,11.72772904]
[1772806750769,0.28432314,85.319,85.269,0.93385797]
[1772806751069,0.28432314,85.317,85.27,11.72745396]
[1772806751976,0.28432314,85.317,85.262,0.93385797]
[1772806753356,0.28432314,85.315,85.264,0.93385797]
[1772806754872,11.72113085,85.316,85.264,0.93385797]
[1772806755059,11.71975716,85.326,85.264,0.93385797]
[1772806755254,0.1,85.34,85.272,0.93385797]
[1772806755455,10.8162221,85.33,85.272,0.93385797]
[1772806755665,7.61106069,85.329,85.272,0.93385797]
[1772806755863,0.1,85.34,85.272,0.93385797]
[1772806756073,10.9162221,85.34,85.272,0.93385797]
[1772806756281,7.60956853,85.339,85.272,0.93385797]
[1772806756572,10.9162221,85.34,85.272,0.93385797]
[1772806756573,0.28432314,85.337,85.272,0.93385797]
[1772806756776,0.28432314,85.335,85.272,0.93385797]
[1772806756978,0.1,85.34,85.272,0.93385797]
[1772806757272,0.1,85.34,85.277,0.93385797]
[1772806757877,0.28432314,85.339,85.277,0.93385797]
[1772806758060,7.89490117,85.339,85.277,0.93385797]
[1772806758264,0.28432314,85.337,85.277,0.93385797]
[1772806758476,0.1,85.34,85.277,0.93385797]
[1772806759372,0.1,85.34,85.282,0.93385797]
[1772806761688,0.1,85.34,85.287,0.93385797]
[1772806762982,0.28432314,85.339,85.287,0.93385797]
[1772806763359,0.28432314,85.339,85.228,0.93385797]
[1772806763360,0.28432314,85.319,85.228,0.93385797]
[1772806763566,0.28432314,85.317,85.229,0.93385797]
[1772806763861,0.28432314,85.317,85.231,0.93385797]
[1772806764079,0.28432314,85.317,85.234,0.93385797]
[1772806765064,0.28432314,85.317,85.235,0.93385797]
[1772806765592,0.28432314,85.321,85.245,1.21818111]
[1772806765883,0.28432314,85.321,85.247,1.07601954]
[1772806766069,11.72058134,85.32,85.249,0.93385797]
[1772806766483,29.29492963,85.339,85.249,1.07601954]
[1772806767067,41.01290148,85.339,85.249,1.07601954]
[1772806767282,0.28432314,85.338,85.249,0.93385797]
[1772806767487,0.28432314,85.336,85.249,0.93385797]
[1772806767686,0.28432314,85.334,85.254,0.93385797]
[1772806768390,0.28432314,85.319,85.254,0.93385797]
[1772806769677,0.28432314,85.319,85.23,0.14216157]
[1772806769678,0.28432314,85.317,85.259,0.93385797]
[1772806771994,0.28432314,85.315,85.261,0.93385797]
[1772806774076,0.28432314,85.313,85.262,41.04994017]
[1772806774279,0.28432314,85.313,85.263,0.93385797]
[1772806775694,0.28432314,85.311,85.265,0.93385797]
[1772806777885,0.28432314,85.311,85.213,1.17352986]
[1772806777886,0.28432314,85.309,85.247,0.93385797]
[1772806778792,11.72149194,85.314,85.25,0.93385797]
[1772806778996,41.01776553,85.329,85.25,0.93385797]
[1772806779176,7.6123117,85.328,85.25,0.93385797]
[1772806779497,0.28432314,85.309,85.25,0.93385797]
[1772806779680,0.28432314,85.319,85.25,0.93385797]
[1772806779879,41.30780028,85.317,85.252,0.93385797]
[1772806780111,0.28432314,85.315,85.252,0.93385797]
[1772806780310,0.28432314,85.313,85.252,0.93385797]
[1772806780523,0.28432314,85.299,85.251,11.73006768]
[1772806780925,0.28432314,85.297,85.251,12.66392565]
[1772806781617,0.28432314,85.297,85.252,0.93385797]
[1772806781817,0.28432314,85.295,85.254,0.93385797]
[1772806782322,0.28432314,85.295,85.224,58.66845007]
[1772806782323,10.78385964,85.28,85.233,0.93385797]
[1772806782527,41.03357718,85.296,85.166,52.78]
[1772806782528,0.28432314,85.269,85.225,14.0281596]
[1772806782713,0.28432314,85.269,85.226,0.93385797]
[1772806783805,0.28432314,85.269,85.225,43.36227517]
[1772806783806,12.01199927,85.269,85.228,0.93385797]
[1772806784743,0.28432314,85.269,85.228,0.93385797]
[1772806784933,0.28432314,85.267,85.228,0.93385797]
[1772806786024,0.28432314,85.267,85.23,0.93385797]
[1772806786618,0.28432314,85.265,85.23,0.93385797]
[1772806786815,0.28432314,85.265,85.225,2.29459177]
[1772806787109,0.28432314,85.249,85.204,11.73644906]
[1772806787513,0.28432314,85.249,85.205,0.93385797]
[1772806787924,10.78385964,85.28,85.207,0.93385797]
[1772806788336,0.28432314,85.275,85.21,0.93385797]
[1772806788545,11.72662882,85.276,85.21,0.93385797]
[1772806789136,72.98385964,85.29,85.21,0.93385797]
[1772806789137,11.72497889,85.288,85.21,0.93385797]
[1772806789518,0.28432314,85.287,85.21,0.93385797]
[1772806790230,0.28432314,85.285,85.215,0.93385797]
[1772806790831,10.78385964,85.31,85.217,0.93385797]
[1772806791015,41.02347714,85.317,85.218,0.93385797]
[1772806791226,41.02347714,85.317,85.22,0.93385797]
[1772806791534,0.28432314,85.316,85.22,0.93385797]
[1772806791736,41.02347714,85.317,85.22,0.93385797]
[1772806792117,0.28432314,85.314,85.225,0.93385797]
[1772806792320,0.14216157,85.314,85.23,0.93385797]
[1772806792527,0.28432314,85.309,85.23,0.93385797]
[1772806793713,0.28432314,85.299,85.23,0.93385797]
[1772806794227,0.28432314,85.297,85.235,0.93385797]
[1772806796127,20.78385964,85.3,85.237,0.93385797]
[1772806796128,0.28432314,85.289,85.237,0.93385797]
[1772806796352,0.28432314,85.295,85.24,0.93385797]
[1772806798050,0.28432314,85.289,85.24,0.93385797]
[1772806798228,0.28432314,85.287,85.242,0.93385797]
[1772806799829,0.28432314,85.287,85.244,0.93385797]
[1772806800545,0.28432314,85.289,85.244,0.93385797]
[1772806800749,0.28432314,85.289,85.235,0.93385797]
[1772806800750,0.28432314,85.279,85.235,0.93385797]
[1772806800930,0.28432314,85.269,85.226,0.93385797]
[1772806801952,0.28432314,85.267,85.228,0.93385797]
[1772806803947,0.28432314,85.259,85.218,11.73461005]
[1772806804251,0.28432314,85.259,85.219,0.93385797]
[1772806805948,0.28432314,85.265,85.221,0.93385797]
[1772806806169,11.72649131,85.277,85.221,0.93385797]
[1772806806455,0.14216157,85.276,85.221,0.93385797]
[1772806806630,0.28432314,85.276,85.221,0.93385797]
[1772806806837,11.72649131,85.277,85.221,0.93385797]
[1772806807435,0.28432314,85.269,85.22,11.73433466]